{"text_format":"1","workbook":"xlsx","n_sheets":4,"sheets":["Security Access Form","Sheet1","Department List","Current Teams"],"not_rendered":{"charts":0,"images":0,"macros":1,"external_links":0,"defined_names":2,"comments":0,"pivot_tables":0},"unopened":[],"bounds":{"document_bytes":16777216,"sheet_cells":100000,"rows_first":2000,"rows_last":500,"rows_between":2000,"halvings":0,"cell_chars":16384,"cell_head_chars":4096},"cells_cut":0,"cells_raw":0,"read":"whole","date_system":"1900"}

{"sheet":"Security Access Form","index":0,"n_rows":43,"n_cols":10,"rows_kept":43,"cut":false,"hidden":false,"merged":[[22,2,22,7],[14,4,16,9],[17,4,19,9],[20,0,20,10],[8,2,8,10],[3,5,3,6],[3,2,3,4],[11,9,11,10],[10,0,10,10],[9,9,9,10],[3,7,3,10],[0,0,0,10],[26,0,26,10],[42,9,42,10],[42,4,42,7],[36,9,36,10],[39,0,39,10],[31,0,33,10],[37,6,37,10],[35,6,35,10],[35,0,35,4],[37,0,37,4],[5,2,5,10],[7,2,7,10],[1,2,1,10],[24,4,24,10],[12,7,12,10]]}
["General Information"]
["Employee Name"]
[null,null,"Title (Dr, Mr, Ms)",null,"Last,",null,"First",null,null,"MI"]
["Office Phone #",null,null,null,null,"Email Address"]
[]
["College/Division Name"]
[]
[null,"Title"]
[]
["Employee Status (check one)"]
["User Status"]
["Status (check one)"]
[null,null,null,null,null,null,null,"(Use only when terminating employee within UCF or Dept)"]
["NOTE: For security reasons, download and save form to enable mulitple department selection. "]
[]
[null,"Remove Depts (indicate depts):"]
[]
[]
[null,"Add Depts (indicate depts):"]
[]
["User Access Type"]
["Type (check one)"]
[]
[]
["Department(s)/Division(s) authority requested:"]
[]
["Signatures"]
["\u009f","Each user is responsible for his/her own accounts. Users are not permitted to share accounts."]
["\u009f","Accounts will be DELETED upon termination of employment at UCF or by the request of the VP, Dean, Director, or Designated rep."]
["\u009f","The Department Head's signature is required."]
[]
["I, the undersigned, accept the responsibilities of a complimentary user account as an employee of the University of Central Florida. I understand that this account is for use in administrative support. Any other uses of this account are strictly prohibited. I, further, understand that Human Resources reserves the right to terminate any account for improper or illegal use."]
[]
[]
[]
[]
["Employee Signature",null,null,null,"Date",null,"Dept. Head Approval Signature",null,null,"Date"]
[]
["Print Employee Name",null,null,null,null,null,"Print Dept. Head Name"]
["Human Resources Use Only"]
[]
[]
["HRIS Administrator Signature",null,null,null,null,null,null,null,"Date"]

{"sheet":"Sheet1","index":1,"n_rows":266,"n_cols":1,"rows_kept":266,"cut":false,"hidden":true,"merged":[]}
["All Departments"]
["BHC Burnett Honors College"]
["BUS All Campus Card Office"]
["BUS Copier Services and Support"]
["BUS Copy Services"]
["BUS Director's Office"]
["BUS Office Plus"]
["BUS Print Shop"]
["BUS The Spot"]
["CAH Dean's Office"]
["CAH English"]
["CAH Flying Horse Editions"]
["CAH History"]
["CAH Humanities Center"]
["CAH Marketing and Communications"]
["CAH Modern Languages and Literatures"]
["CAH NSCM-Digital Media"]
["CAH NSCM-Film"]
["CAH NSCM-FL Interactive Entertainment Academy"]
["CAH Philosophy and Humanities"]
["CAH School of Performing Arts"]
["CAH School of Visual Arts And Design"]
["CAH Student Advising"]
["CAH Women's and Gender Studies"]
["CAH Writing and Rhetoric"]
["CBA Center for Economic Education"]
["CBA Dean's Office"]
["CBA Development and Alumni Relations"]
["CBA DeVos Sport Business Management"]
["CBA Economics"]
["CBA Executive Development Center"]
["CBA Finance"]
["CBA Institute for Economic Competitiveness"]
["CBA Integrated Business Program"]
["CBA Management"]
["CBA Marketing"]
["CBA National Consortium for Academics & Sports"]
["CBA Office of Corporate Partnership & Career Man."]
["CBA Office of Graduate Programs"]
["CBA Office of Professional Development"]
["CBA School of Accounting"]
["CBA Technology Resource Center"]
["CCE Academic and Community Initiatives"]
["CCE Accreditation, Analytics and Assessment"]
["CCE Budget Office"]
["CCE Center for Community Schools"]
["CCE Clinical and Field Experiences"]
["CCE Communications"]
["CCE Counselor Education and School Psychology"]
["CCE Criminal Justice"]
["CCE Doctoral Program in Public Affairs"]
["CCE Educational Leadership and Higher Education"]
["CCE Facilities"]
["CCE Florida Center for Students with Unique Abilities"]
["CCE Florida Institute of Government"]
["CCE Graduate Affairs"]
["CCE Health Management Informatics"]
["CCE Learning Sciences and Educational Research "]
["CCE Legal Studies"]
["CCE Morgridge International Reading Center"]
["CCE Office of Research"]
["CCE Office of the Dean"]
["CCE School of Public Administration"]
["CCE School of Teacher Education"]
["CCE Toni Jennings and Exceptional Education Institute"]
["CCE UCF Marriage and Family Research Institute"]
["CCE Undergraduate Affairs"]
["CEC Academic Affairs"]
["CEC Civil, Environmental and Construction Engr"]
["CEC Computer Science"]
["CEC Dean's Office"]
["CEC Electrical and Computer Engineering"]
["CEC Industrial Engineering and Management Systems"]
["CEC Material Science Engineering"]
["CEC Mechanical and Aerospace Engineering"]
["CHM Dean's Office"]
["CHM Events and Attractions"]
["CHM Foodservice and Lodging Management"]
["CHM Hospitality Services"]
["CHM Tourism"]
["CHP (CARD) Center for Autism & Related Disabilities"]
["CHP Athletic Training"]
["CHP Communication Sciences and Disorders"]
["CHP Dean's Office"]
["CHP Doctoral Program in Physical Therapy"]
["CHP Florida Center for Nursing"]
["CHP Health Sciences"]
["CHP Instructional Support and Technology"]
["CHP Kinesiology"]
["CHP Office of Student Support Services"]
["CHP Physical Therapy"]
["CHP School of Kinesiology"]
["CHP School of Social Work"]
["CMK Communications"]
["CMK UCF Marketing"]
["CMK Vice President's Office"]
["CMK WUCF FM"]
["CMK WUCF TV"]
["CNT Center for Continuing Education"]
["CNT UCF Connect - Central"]
["CNT UCF Connect - Eastern"]
["CNT UCF Connect - Seminole"]
["CNT UCF Connect - Southern"]
["CNT UCF Connect - Western "]
["CNT UCF Connect Administration"]
["CNT UCF Connect- Online Connect Center"]
["COM Admin & Finance"]
["COM Biomedical Sciences"]
["COM Clinical Sciences"]
["COM College of Medicine"]
["COM Dept of Medical Education"]
["COM F&AA- Payroll SP"]
["COM Faculty and Academic Affairs"]
["COM Grad Med Operations"]
["COM Health & Information Technology"]
["COM Internal Medicine"]
["COM Planning and Knowledge Mgmt"]
["COM Population Health"]
["COM Student Affairs"]
["COM Student Health Services"]
["COM UCF Health"]
["COM UCFH Business Services"]
["CON College of Nursing"]
["COS Academic Services (COSAS)"]
["COS Anthropology"]
["COS Biology"]
["COS Chemistry"]
["COS Dean's Office"]
["COS Lou Frey Institute"]
["COS Mathematics"]
["COS National Center for Forensic Science"]
["COS Nicholson School of Communication"]
["COS Physics"]
["COS Political Science"]
["COS Psychology"]
["COS Sociology"]
["COS Statistics"]
["COS STEM"]
["FAC AVP Office-Facilities and Safety"]
["FAC Building Department"]
["FAC Facilities Operations"]
["FAC Facilities Planning and Construction"]
["FAC Landscape and Natural Resources"]
["FAC Resource  Management"]
["FAC Strategic Innovations & Safety Group"]
["FAC Sustainability Initiatives"]
["FAC University Building Innovations Group"]
["FAC Utilities & Energy Services"]
["FCI Faculty Cluster Initiative"]
["FCI FCI- Disability, Aging and Technology (DAT)"]
["FCI FCI- Genomics and Bioinformatics"]
["FCI FCI- Rises"]
["FCI FCI-Coastal"]
["FCI FCI-Cyber Security and Privacy"]
["FCI FCI-Energy Conversion and Propulsion"]
["FCI FCI-Learning Sciences"]
["FCI FCI-Prosthetics Interfaces"]
["FCI FCI-Violence Against Women"]
["FNA Finance & Accounting "]
["FND UCF Foundation"]
["GBL UCF Global"]
["GBL UCF Global  - Special Programs, Linkages and Agreements"]
["GBL UCF Global - Compliance"]
["GBL UCF Global - English Language Institute"]
["GBL UCF Global - Information Technology"]
["GBL UCF Global - Records & Registration"]
["GBL UCF Global - Recruitment & Outreach"]
["GBL UCF Global- Finance and HR"]
["GRD Graduate Studies"]
["HLT Admin & Finance"]
["HLT Biomedical Sciences"]
["HLT Clinical Sciences"]
["HLT College of Medicine"]
["HLT COM F&AA- Payroll SP"]
["HLT COM_Grad Med Operations"]
["HLT Dept of Medical Education"]
["HLT Faculty and Academic Affairs"]
["HLT Health & Information Technology"]
["HLT Internal Medicine"]
["HLT Pegasus Health*"]
["HLT Planning and Knowledge Mgmt"]
["HLT Population Health"]
["HLT Student Affairs"]
["HLT Student Health Services"]
["HLT UCFH Business Services"]
["HR Accounting & Operations"]
["HR Administration"]
["HR Benefits"]
["HR Compensation"]
["HR Employee Relations & HR Compliance"]
["HR Employment Services & Records"]
["HR HRIS"]
["HR Learning & Organizational Effectiveness"]
["HR Leave of Absence"]
["HR Payroll"]
["HR Talent Acquisition"]
["ITR DDL-Center for Distributed Learning"]
["ITR DDL-Instructional Resources"]
["ITR Information Technologies & Resources"]
["ITR ITR - SPAA"]
["ITR ITR-Business Center"]
["ITR ITR-Information Security"]
["ITR ITR-Instructional Resources"]
["ITR ITR-Library"]
["ITR ITR-UCF IT"]
["PKG Parking Services"]
["POL Police Department"]
["PRS Business Services"]
["PRS Vice President's Office"]
["PRV Faculty Excellence"]
["PRV Institutional Knowledge Management"]
["PRV Provost and Vice President"]
["RSH AMPAC"]
["RSH Bimolecular Science Center"]
["RSH Commercialization"]
["RSH Florida Solar Energy Center"]
["RSH Institute for Simulation and Training (IST)"]
["RSH Nanoscience Technology Center (NSTC)"]
["RSH Vice President's Office"]
["SDS Academic Services for Student Athletes"]
["SDS Activity and Service Fee Business Office"]
["SDS Associate VP Administration & Student Life"]
["SDS Associate VP and Dean of Students"]
["SDS Associate VP Enrollment Services"]
["SDS Associate VP Student Engagement & Leadership Development"]
["SDS Associate VP Student Success"]
["SDS Career Services"]
["SDS Counseling and Psychological Services"]
["SDS Creative School for Children"]
["SDS First Year Advising and Exploration"]
["SDS First Year Experience"]
["SDS Florida Consortium for Metropolitan Research Universities"]
["SDS Fraternity and Sorority Life"]
["SDS Housing and Residence Life"]
["SDS Information Technology"]
["SDS LEAD Scholars Academy"]
["SDS Multicultural Academic and Support Services"]
["SDS Office of Student Involvement"]
["SDS Office of Student Rights and Responsibilities"]
["SDS Office of Student Success"]
["SDS Recreation and Wellness Center"]
["SDS Registrar's Office"]
["SDS Social Justice and Advocacy"]
["SDS Student Academic Resource Center"]
["SDS Student Accessibility Services"]
["SDS Student Financial Assistance"]
["SDS Student Legal Services"]
["SDS Student Union"]
["SDS Transfer and Transition Services"]
["SDS Trio Programs"]
["SDS Undergraduate Admissions"]
["SDS Vice President's Office"]
["SDS Wellness and Health Promotion Services"]
["SEM Security and Emergency Management"]
["TLC Academic Advancement Program"]
["TLC Academic Services "]
["TLC Division of Teaching & Learning and College of Undergraduate Studies"]
["TLC Experiential Learning"]
["TLC Faculty Center"]
["TLC iACE"]
["TLC Interdisciplinary Studies"]
["TLC Operational Excellence Assessment "]
["TLC Pre-Health/Pre-Law Advising"]
["TLC Quality Enhancement  Program"]
["TLC UCF Abroad"]
["TLC Undergraduate Research"]

{"sheet":"Department List","index":2,"n_rows":316,"n_cols":1,"rows_kept":316,"cut":false,"hidden":true,"merged":[]}
[]
["All Departments"]
["AFG - Accounting & Finance Vice President"]
["BHC Burnett Honors College"]
["BUS All Campus Card Office"]
["BUS Copier Services and Support"]
["BUS Copy Services"]
["BUS Director's Office"]
["BUS Office Plus"]
["BUS Print Shop"]
["BUS The Spot"]
["CAH Dean's Office"]
["CAH English"]
["CAH Flying Horse Editions"]
["CAH History"]
["CAH Humanities Center"]
["CAH Marketing and Communications"]
["CAH Modern Languages and Literatures"]
["CAH NSCM-Digital Media"]
["CAH NSCM-Film"]
["CAH NSCM-FL Interactive Entertainment Academy"]
["CAH Philosophy and Humanities"]
["CAH School of Performing Arts"]
["CAH School of Visual Arts And Design"]
["CAH Student Advising"]
["CAH Women's and Gender Studies"]
["CAH Writing and Rhetoric"]
["CBA Center for Economic Education"]
["CBA Dean's Office"]
["CBA Development and Alumni Relations"]
["CBA DeVos Sport Business Management"]
["CBA Economics"]
["CBA Executive Development Center"]
["CBA Finance"]
["CBA Institute for Economic Competitiveness"]
["CBA Integrated Business Program"]
["CBA Management"]
["CBA Marketing"]
["CBA National Consortium for Academics & Sports"]
["CBA Office of Corporate Partnership & Career Man."]
["CBA Office of Graduate Programs"]
["CBA Office of Professional Development"]
["CBA School of Accounting"]
["CBA Technology Resource Center"]
["CCE Academic and Community Initiatives"]
["CCE Accreditation and Assessment"]
["CCE Administration Office"]
["CCE Budget Office"]
["CCE Center for Community Schools"]
["CCE Clinical and Field Experiences"]
["CCE Communications"]
["CCE Counselor Education and School Psychology"]
["CCE Criminal Justice"]
["CCE Doctoral Program in Public Affairs"]
["CCE Educational Leadership and Higher Education"]
["CCE Facilities"]
["CCE Florida Center for Students with Unique Abilities"]
["CCE Florida Institute of Government"]
["CCE Graduate Affairs & Faculty Excellence"]
["CCE Graduate Affairs Student Services"]
["CCE Health Management Informatics"]
["CCE Learning Sciences and Educational Research Contracts"]
["CCE Learning Sciences and Educational Research "]
["CCE Legal Studies"]
["CCE Morgridge International Reading Center"]
["CCE Office of Research"]
["CCE Office of the Dean"]
["CCE Program Evaluation and Educational Research"]
["CCE Public Affairs"]
["CCE School of Public Administration"]
["CCE School of Teacher Education"]
["CCE Suspense"]
["CCE TeachLivE"]
["CCE Toni Jennings and Exceptional Education Institute"]
["CCE UCF Marriage and Family Research Institute"]
["CCE Undergraduate Affairs"]
["CCE Undergraduate Affairs Recruit & Retention"]
["CCE Undergraduate Affairs Special Projects"]
["CCE Undergraduate Affairs Student Services"]
["CCE Urban Initiatives"]
["CEC Academic Affairs"]
["CEC Adavnced Materials Processing and Analysis Center"]
["CEC Civil, Environmental and Construction Engr"]
["CEC Civil Engineering"]
["CEC Computer Science"]
["CEC Dean's Office"]
["CEC Electrical Engineering"]
["CEC Electrical and Computer Engineering"]
["CEC Engineering & Computer Science"]
["CEC Industrial Engineering and Management Systems"]
["CEC Material Science Engineering"]
["CEC Mechanical and Aerospace Engineering"]
["CHM Dean's Office"]
["CHM Events and Attractions"]
["CHM Foodservice and Lodging Management"]
["CHM Hospitality Services"]
["CHM Tourism"]
["CHP (CARD) Center for Autism & Related Disabilities"]
["CHP Athletic Training"]
["CHP Communication Sciences and Disorders"]
["CHP Center for Community Schools"]
["CHP Dean's Office"]
["CHP Doctoral Program in Physical Therapy"]
["CHP Florida Center for Nursing"]
["CHP Health Sciences"]
["CHP Instructional Support and Technology"]
["CHP Kinesiology"]
["CHP Office of Student Support Services"]
["CHP Physical Therapy"]
["CHP School of Kinesiology"]
["CHP School of Social Work"]
["CMK Communications"]
["CMK UCF Marketing"]
["CMK Vice President's Office"]
["CMK WUCF FM"]
["CMK WUCF TV"]
["CNT Center for Continuing Education"]
["CNT UCF Connect - Central"]
["CNT UCF Connect - Eastern"]
["CNT UCF Connect - Seminole"]
["CNT UCF Connect - Southern"]
["CNT UCF Connect - Western "]
["CNT UCF Connect Administration"]
["CNT UCF Connect- Online Connect Center"]
["COM Admin & Finance"]
["COM Biomedical Sciences"]
["COM Clinical Sciences"]
["COM College of Medicine"]
["COM Dept of Medical Education"]
["COM F&AA- Payroll SP"]
["COM Faculty and Academic Affairs"]
["COM Grad Med Operations"]
["COM Health & Information Technology"]
["COM Internal Medicine"]
["COM Planning and Knowledge Mgmt"]
["COM Population Health"]
["COM Student Affairs"]
["COM Student Health Services"]
["COM UCF Health"]
["COM UCFH Business Services"]
["CON College of Nursing"]
["COS Academic Services (COSAS)"]
["COS Anthropology"]
["COS Biology"]
["COS Chemistry"]
["COS Dean's Office"]
["COS Lou Frey Institute"]
["COS Mathematics"]
["COS National Center for Forensic Science"]
["COS Nicholson School of Communication"]
["COS Physics"]
["COS Political Science"]
["COS Psychology"]
["COS Sociology"]
["COS Statistics"]
["COS STEM"]
["COS UCF Restores"]
["FAC AVP Office-Facilities and Safety"]
["FAC Building Department"]
["FAC Facilities Operations"]
["FAC Facilities Planning and Construction"]
["FAC Landscape and Natural Resources"]
["FAC Resource  Management"]
["FAC Strategic Innovations & Safety Group"]
["FAC Sustainability Initiatives"]
["FAC University Building Innovations Group"]
["FAC Utilities & Energy Services"]
["FCI Faculty Cluster Initiative"]
["FCI FCI- Disability, Aging and Technology (DAT)"]
["FCI FCI- Genomics and Bioinformatics"]
["FCI FCI- Rises"]
["FCI FCI-Coastal"]
["FCI FCI-Cyber Security and Privacy"]
["FCI FCI-Energy Conversion and Propulsion"]
["FCI FCI-Learning Sciences"]
["FCI FCI-Prosthetics Interfaces"]
["FCI FCI-Violence Against Women"]
["FNA Finance & Accounting "]
["FND UCF Foundation"]
["GEN Counsel"]
["GBL UCF Global"]
["GBL UCF Global  - Special Programs, Linkages and Agreements"]
["GBL UCF Global - Compliance"]
["GBL UCF Global - English Language Institute"]
["GBL UCF Global - Information Technology"]
["GBL UCF Global - Records & Registration"]
["GBL UCF Global - Recruitment & Outreach"]
["GBL UCF Global- Finance and HR"]
["GRD Graduate Studies"]
["HLT Admin & Finance"]
["HLT Biomedical Sciences"]
["HLT Clinical Sciences"]
["HLT College of Medicine"]
["HLT COM F&AA- Payroll SP"]
["HLT COM_Grad Med Operations"]
["HLT Dept of Medical Education"]
["HLT Faculty and Academic Affairs"]
["HLT Health & Information Technology"]
["HLT Internal Medicine"]
["HLT Pegasus Health*"]
["HLT Planning and Knowledge Mgmt"]
["HLT Population Health"]
["HLT Student Affairs"]
["HLT Student Health Services"]
["HLT UCFH Business Services"]
["HR Accounting & Operations"]
["HR Administration"]
["HR Benefits"]
["HR Compensation"]
["HR Employee Relations & HR Compliance"]
["HR Employment Services & Records"]
["HR HRIS"]
["HR Learning & Organizational Effectiveness"]
["HR Leave of Absence"]
["HR Payroll"]
["HR Talent Acquisition"]
["ITR DDL-Center for Distributed Learning"]
["ITR DDL-Instructional Resources"]
["ITR Information Technologies & Resources"]
["ITR ITR - SPAA"]
["ITR ITR-Business Center"]
["ITR ITR-Information Security"]
["ITR ITR-Instructional Resources"]
["ITR ITR-Library"]
["ITR ITR-UCF IT"]
["PKG Parking Services"]
["POL Police Department"]
["POL Security"]
["POL Emergency Department"]
["Procurement"]
["PRS Athletics Compliance"]
["PRS Audit"]
["PRS Business Services"]
["PRS Diversity Initiatives"]
["PRS Government Relations"]
["PRS Office of Institutional Equity"]
["PRS Office of the President"]
["PRS Ombuds"]
["PRS Partnerships"]
["PRS Risk Office"]
["PRS Small Business Development Center"]
["PRS University Compliance"]
["PRS Vice President's Office"]
["PRV Academic Program Quality"]
["PRV Faculty Excellence"]
["PRV Institutional Knowledge Management"]
["PRV Provost and Vice President"]
["PRV Institutional Analytics"]
["PRV Faculty Senate"]
["RSH AMPAC"]
["RSH Bimolecular Science Center"]
["RSH Commercialization"]
["RSH Environmental Health & Safety"]
["RSH Florida Solar Energy Center"]
["RSH Florida Space Institute"]
["RSH Institute for Simulation and Training (IST)"]
["RSH Nanoscience Technology Center (NSTC)"]
["RSH Vice President's Office"]
["SDS Academic Services for Student Athletes"]
["SDS Activity and Service Fee Business Office"]
["SDS Associate VP Administration & Student Life"]
["SDS Associate VP and Dean of Students"]
["SDS Associate VP Enrollment Services"]
["SDS Associate VP Student Engagement & Leadership Development"]
["SDS Associate VP Student Success"]
["SDS Career Services"]
["SDS Counseling and Psychological Services"]
["SDS Creative School for Children"]
["SDS Downtown Campus"]
["SDS First Year Advising and Exploration"]
["SDS First Year Experience"]
["SDS Florida Consortium for Metropolitan Research Universities"]
["SDS Fraternity and Sorority Life"]
["SDS Housing and Residence Life"]
["SDS Information Technology"]
["SDS LEAD Scholars Academy"]
["SDS Multicultural Academic and Support Services"]
["SDS Office of Student Involvement"]
["SDS Office of Student Rights and Responsibilities"]
["SDS Office of Student Success"]
["SDS Recreation and Wellness Center"]
["SDS Registrar's Office"]
["SDS Social Justice and Advocacy"]
["SDS Student Academic Resource Center"]
["SDS Student Accessibility Services"]
["SDS Student Financial Assistance"]
["SDS Student Legal Services"]
["SDS Student Union"]
["SDS Transfer and Transition Services"]
["SDS Trio Programs"]
["SDS Undergraduate Admissions"]
["SDS Vice President's Office"]
["SDS Wellness and Health Promotion Services"]
["SEM Security and Emergency Management"]
["TLC Academic Advancement Program"]
["TLC Academic Services "]
["TLC Division of Teaching & Learning and College of Undergraduate Studies"]
["TLC Experiential Learning"]
["TLC Faculty Center"]
["TLC iACE"]
["TLC Interdisciplinary Studies"]
["TLC Operational Excellence Assessment "]
["TLC Pre-Health/Pre-Law Advising"]
["TLC Quality Enhancement  Program"]
["TLC UCF Abroad"]
["TLC Undergraduate Research"]
["SDES - Student Financial Assistance "]
["SDES - Student Health Services"]
["SDES - Student Legal Services"]
["SDES - Student Outreach Services"]
["SDES - Student Union"]
["SDES - Transfer and Transition Services"]
["SDES - TriO Programs "]
["SDES - Undergraduate Admissions"]
["SDES - Vice President's Office"]
["SDES - Wellness and Health Promotion Services"]

{"sheet":"Current Teams","index":3,"n_rows":294,"n_cols":3,"rows_kept":294,"cut":false,"hidden":true,"merged":[]}
["Current Teams in PAGE UP","All Departments - on Form",{"$f":"IF(B1=A1,\"yes\",\"no\")","v":"no"}]
["AFG - Accounting & Finance Vice President","AFG - Accounting & Finance Vice President",{"$f":"IF(B2=A2,\"yes\",\"no\")","v":"yes"}]
["BHC Burnett Honors College","BHC Burnett Honors College","yes"]
["BUS All Campus Card Office","BUS All Campus Card Office","yes"]
["BUS Copier Services and Support","BUS Copier Services and Support","yes"]
["BUS Copy Services","BUS Copy Services","yes"]
["BUS Director's Office","BUS Director's Office","yes"]
["BUS Office Plus","BUS Office Plus","yes"]
["BUS Print Shop","BUS Print Shop","yes"]
["BUS The Spot","BUS The Spot","yes"]
["CAH Dean's Office","CAH Dean's Office","yes"]
["CAH English","CAH English","yes"]
["CAH Flying Horse Editions","CAH Flying Horse Editions","yes"]
["CAH History","CAH History","yes"]
["CAH Humanities Center","CAH Humanities Center","yes"]
["CAH Marketing and Communications","CAH Marketing and Communications","yes"]
["CAH Modern Languages and Literatures","CAH Modern Languages and Literatures","yes"]
["CAH NSCM-Digital Media","CAH NSCM-Digital Media","yes"]
["CAH NSCM-Film","CAH NSCM-Film","yes"]
["CAH NSCM-FL Interactive Entertainment Academy","CAH NSCM-FL Interactive Entertainment Academy","yes"]
["CAH Philosophy and Humanities","CAH Philosophy and Humanities","yes"]
["CAH School of Performing Arts","CAH School of Performing Arts","yes"]
["CAH School of Visual Arts And Design","CAH School of Visual Arts And Design","yes"]
["CAH Student Advising","CAH Student Advising","yes"]
["CAH Women's and Gender Studies","CAH Women's and Gender Studies","yes"]
["CAH Writing and Rhetoric","CAH Writing and Rhetoric","yes"]
["CBA Center for Economic Education","CBA Center for Economic Education","yes"]
["CBA Dean's Office","CBA Dean's Office","yes"]
["CBA Development and Alumni Relations","CBA Development and Alumni Relations","yes"]
["CBA DeVos Sport Business Management","CBA DeVos Sport Business Management","yes"]
["CBA Economics","CBA Economics","yes"]
["CBA Executive Development Center","CBA Executive Development Center","yes"]
["CBA Finance","CBA Finance","yes"]
["CBA Institute for Economic Competitiveness","CBA Institute for Economic Competitiveness","yes"]
["CBA Integrated Business Program","CBA Integrated Business Program","yes"]
["CBA Management","CBA Management","yes"]
["CBA Marketing","CBA Marketing","yes"]
["CBA National Consortium for Academics & Sports","CBA National Consortium for Academics & Sports","yes"]
["CBA Office of Corporate Partnership & Career Man.","CBA Office of Corporate Partnership & Career Man.","yes"]
["CBA Office of Graduate Programs","CBA Office of Graduate Programs","yes"]
["CBA Office of Professional Development","CBA Office of Professional Development","yes"]
["CBA School of Accounting","CBA School of Accounting","yes"]
["CBA Technology Resource Center","CBA Technology Resource Center","yes"]
["CCE Academic and Community Initiatives","CCE Academic and Community Initiatives","yes"]
["CCE Accreditation, Analytics and Assessment","CCE Accreditation, Analytics and Assessment","yes"]
["CCE Budget Office","CCE Budget Office","yes"]
["CCE Center for Community Schools","CCE Center for Community Schools","yes"]
["CCE Clinical and Field Experiences","CCE Clinical and Field Experiences","yes"]
["CCE Communications","CCE Communications","yes"]
["CCE Counselor Education and School Psychology","CCE Counselor Education and School Psychology","yes"]
["CCE Criminal Justice","CCE Criminal Justice","yes"]
["CCE Doctoral Program in Public Affairs","CCE Doctoral Program in Public Affairs","yes"]
["CCE Educational Leadership and Higher Education","CCE Educational Leadership and Higher Education","yes"]
["CCE Facilities","CCE Facilities","yes"]
["CCE Florida Center for Students with Unique Abilities","CCE Florida Center for Students with Unique Abilities","yes"]
["CCE Florida Institute of Government","CCE Florida Institute of Government","yes"]
["CCE Graduate Affairs","CCE Graduate Affairs","yes"]
["CCE Health Management Informatics","CCE Health Management Informatics","yes"]
["CCE Learning Sciences and Educational Research","CCE Learning Sciences and Educational Research ","no"]
["CCE Legal Studies","CCE Legal Studies","yes"]
["CCE Morgridge International Reading Center","CCE Morgridge International Reading Center","yes"]
["CCE Office of Research","CCE Office of Research","yes"]
["CCE Office of the Dean","CCE Office of the Dean","yes"]
["CCE School of Public Administration","CCE School of Public Administration","yes"]
["CCE School of Teacher Education","CCE School of Teacher Education","yes"]
["CCE Soldiers to Scholars",null,{"$f":"IF(B66=A66,\"yes\",\"no\")","v":"no"}]
["CCE Toni Jennings and Exceptional Education Institute","CCE Toni Jennings and Exceptional Education Institute","yes"]
["CCE UCF Marriage and Family Research Institute","CCE UCF Marriage and Family Research Institute","yes"]
["CCE Undergraduate Affairs","CCE Undergraduate Affairs","yes"]
["CEA - AMPAC",null,"no"]
["CEC Academic Affairs","CEC Academic Affairs","yes"]
["CEC Civil, Environmental and Construction Engr","CEC Civil, Environmental and Construction Engr","yes"]
["CEC Computer Science","CEC Computer Science","yes"]
["CEC Dean's Office","CEC Dean's Office","yes"]
["CEC Electrical and Computer Engineering","CEC Electrical and Computer Engineering","yes"]
["CEC Industrial Engineering and Management Systems","CEC Industrial Engineering and Management Systems","yes"]
["CEC Material Science Engineering","CEC Material Science Engineering","yes"]
["CEC Mechanical and Aerospace Engineering","CEC Mechanical and Aerospace Engineering","yes"]
["CHM Dean's Office","CHM Dean's Office","yes"]
["CHM Events and Attractions","CHM Events and Attractions","yes"]
["CHM Foodservice and Lodging Management","CHM Foodservice and Lodging Management","yes"]
["CHM Hospitality Services","CHM Hospitality Services","yes"]
["CHM Tourism","CHM Tourism","yes"]
["CHP (CARD) Center for Autism & Related Disabilities","CHP (CARD) Center for Autism & Related Disabilities","yes"]
["CHP Athletic Training","CHP Athletic Training","yes"]
["CHP Communication Sciences and Disorders","CHP Communication Sciences and Disorders","yes"]
["CHP Dean's Office","CHP Dean's Office","yes"]
["CHP Doctoral Program in Physical Therapy","CHP Doctoral Program in Physical Therapy","yes"]
["CHP Florida Center for Nursing","CHP Florida Center for Nursing","yes"]
["CHP Health Sciences","CHP Health Sciences","yes"]
["CHP Instructional Support and Technology","CHP Instructional Support and Technology","yes"]
["CHP Kinesiology","CHP Kinesiology","yes"]
["CHP Office of Student Support Services","CHP Office of Student Support Services","yes"]
["CHP Physical Therapy","CHP Physical Therapy","yes"]
["CHP School of Kinesiology","CHP School of Kinesiology","yes"]
["CHP School of Social Work","CHP School of Social Work","yes"]
["CMK Communications","CMK Communications","yes"]
["CMK UCF Marketing","CMK UCF Marketing","yes"]
["CMK Vice President's Office","CMK Vice President's Office","yes"]
["CMK WUCF FM","CMK WUCF FM","yes"]
["CMK WUCF TV","CMK WUCF TV","yes"]
["CNT Center for Continuing Education","CNT Center for Continuing Education","yes"]
["CNT UCF Connect - Central","CNT UCF Connect - Central","yes"]
["CNT UCF Connect - Eastern","CNT UCF Connect - Eastern","yes"]
["CNT UCF Connect - Seminole","CNT UCF Connect - Seminole","yes"]
["CNT UCF Connect - Southern","CNT UCF Connect - Southern","yes"]
["CNT UCF Connect - Western","CNT UCF Connect - Western "]
["CNT UCF Connect Administration","CNT UCF Connect Administration","yes"]
["CNT UCF Connect- Online Connect Center","CNT UCF Connect- Online Connect Center","yes"]
["COM Admin & Finance","COM Admin & Finance","yes"]
["COM Biomedical Sciences","COM Biomedical Sciences","yes"]
["COM Clinical Sciences","COM Clinical Sciences","yes"]
["COM College of Medicine","COM College of Medicine","yes"]
["COM Dept of Medical Education","COM Dept of Medical Education","yes"]
["COM F&AA- Payroll SP","COM F&AA- Payroll SP","yes"]
["COM Faculty and Academic Affairs","COM Faculty and Academic Affairs","yes"]
["COM Grad Med Operations","COM Grad Med Operations","yes"]
["COM Health & Information Technology","COM Health & Information Technology","yes"]
["COM Internal Medicine","COM Internal Medicine","yes"]
["COM Planning and Knowledge Mgmt","COM Planning and Knowledge Mgmt","yes"]
["COM Population Health","COM Population Health","yes"]
["COM Student Affairs","COM Student Affairs","yes"]
["COM Student Health Services","COM Student Health Services","yes"]
["COM UCF Health","COM UCF Health","yes"]
["COM UCFH Business Services","COM UCFH Business Services","yes"]
["CON College of Nursing","CON College of Nursing","yes"]
["COP - CREOL","COS Academic Services (COSAS)","no"]
["COS Academic Services (COSAS)","COS Academic Services (COSAS)","yes"]
["COS Anthropology","COS Anthropology","yes"]
["COS Biology","COS Biology",{"$f":"IF(B130=A130,\"yes\",\"no\")","v":"yes"}]
["COS Chemistry","COS Chemistry","yes"]
["COS Dean's Office","COS Dean's Office","yes"]
["COS Lou Frey Institute","COS Lou Frey Institute","yes"]
["COS Mathematics","COS Mathematics","yes"]
["COS National Center for Forensic Science","COS National Center for Forensic Science","yes"]
["COS Nicholson School of Communication","COS Nicholson School of Communication","yes"]
["COS Physics","COS Physics","yes"]
["COS Political Science","COS Political Science","yes"]
["COS Psychology","COS Psychology","yes"]
["COS Sociology","COS Sociology","yes"]
["COS Statistics","COS Statistics","yes"]
["COS STEM","COS STEM","yes"]
["COS UCF Restores",null,"no"]
["Default Team",null,"no"]
["FAC AVP Office-Facilities and Safety","FAC AVP Office-Facilities and Safety","yes"]
["FAC Building Department","FAC Building Department","yes"]
["FAC Downtown Campus","FAC Facilities Operations","no"]
["FAC Environmental Health & Safety","FAC Facilities Planning and Construction","no"]
["FAC Facilities Operations","FAC Facilities Operations","yes"]
["FAC Facilities Planning and Construction","FAC Facilities Planning and Construction","yes"]
["FAC Landscape and Natural Resources","FAC Landscape and Natural Resources","yes"]
["FAC Quality Management & Improvements","FAC Resource  Management","no"]
["FAC Resources Management","FAC Resources Management","yes"]
[null,"FAC Strategic Innovations & Safety Group","no"]
["FAC Sustainability Initiatives","FAC Sustainability Initiatives","yes"]
[null,"FAC University Building Innovations Group","no"]
["FAC Utilities & Energy Services","FAC Utilities & Energy Services","yes"]
["FCI Faculty Cluster Initiative","FCI Faculty Cluster Initiative","yes"]
["FCI FCI- Disability, Aging and Technology (DAT)","FCI FCI- Disability, Aging and Technology (DAT)","yes"]
["FCI FCI- Genomics and Bioinformatics","FCI FCI- Genomics and Bioinformatics","yes"]
["FCI FCI- Rises","FCI FCI- Rises","yes"]
["FCI FCI-Coastal","FCI FCI-Coastal","yes"]
["FCI FCI-Cyber Security and Privacy","FCI FCI-Cyber Security and Privacy","yes"]
["FCI FCI-Energy Conversion and Propulsion","FCI FCI-Energy Conversion and Propulsion","yes"]
["FCI FCI-Learning Sciences","FCI FCI-Learning Sciences","yes"]
["FCI FCI-Prosthetics Interfaces","FCI FCI-Prosthetics Interfaces","yes"]
["FCI FCI-Violence Against Women","FCI FCI-Violence Against Women","yes"]
["FNA Finance & Accounting","FNA Finance & Accounting "]
["FND UCF Foundation","FND UCF Foundation","yes"]
["GBL UCF Global","GBL UCF Global","yes"]
["GBL UCF Global - Special Programs, Linkages and Agreements","GBL UCF Global  - Special Programs, Linkages and Agreements"]
["GBL UCF Global - Compliance","GBL UCF Global - Compliance","yes"]
["GBL UCF Global - English Language Institute","GBL UCF Global - English Language Institute","yes"]
["GBL UCF Global - Information Technology","GBL UCF Global - Information Technology","yes"]
["GBL UCF Global - Records & Registration","GBL UCF Global - Records & Registration","yes"]
["GBL UCF Global - Recruitment & Outreach","GBL UCF Global - Recruitment & Outreach","yes"]
["GBL UCF Global- Finance and HR","GBL UCF Global- Finance and HR","yes"]
["GEN - Counsel",null,"no"]
["GRD Graduate Studies","GRD Graduate Studies","yes"]
["HLT Admin & Finance","HLT Admin & Finance","yes"]
["HLT Biomedical Sciences","HLT Biomedical Sciences","yes"]
["HLT Clinical Sciences","HLT Clinical Sciences","yes"]
["HLT College of Medicine","HLT College of Medicine","yes"]
["HLT COM F&AA- Payroll SP","HLT COM F&AA- Payroll SP","yes"]
["HLT COM_Grad Med Operations","HLT COM_Grad Med Operations","yes"]
["HLT Dept of Medical Education","HLT Dept of Medical Education","yes"]
["HLT Faculty and Academic Affairs","HLT Faculty and Academic Affairs","yes"]
["HLT Health & Information Technology","HLT Health & Information Technology","yes"]
["HLT Internal Medicine","HLT Internal Medicine","yes"]
["HLT Pegasus Health*","HLT Pegasus Health*","yes"]
["HLT Planning and Knowledge Mgmt","HLT Planning and Knowledge Mgmt","yes"]
["HLT Population Health","HLT Population Health","yes"]
["HLT Student Affairs","HLT Student Affairs","yes"]
["HLT Student Health Services","HLT Student Health Services",{"$f":"IF(B194=A194,\"yes\",\"no\")","v":"yes"}]
["HLT UCFH Business Services","HLT UCFH Business Services","yes"]
["HR Accounting & Operations","HR Accounting & Operations","yes"]
["HR Administration","HR Administration","yes"]
["HR Benefits","HR Benefits","yes"]
["HR Compensation","HR Compensation","yes"]
["HR Employee Relations & HR Compliance","HR Employee Relations & HR Compliance","yes"]
["HR Employment Services & Records","HR Employment Services & Records","yes"]
["HR HRIS","HR HRIS","yes"]
["HR Learning & Organizational Effectiveness","HR Learning & Organizational Effectiveness","yes"]
["HR Leave of Absence","HR Leave of Absence","yes"]
["HR Payroll","HR Payroll","yes"]
["HR Talent Acquisition","HR Talent Acquisition","yes"]
["ITR DDL-Center for Distributed Learning","ITR DDL-Center for Distributed Learning","yes"]
["ITR DDL-Instructional Resources","ITR DDL-Instructional Resources","yes"]
["ITR Information Technologies & Resources","ITR Information Technologies & Resources","yes"]
["ITR ITR - SPAA","ITR ITR - SPAA","yes"]
["ITR ITR-Business Center","ITR ITR-Business Center","yes"]
["ITR ITR-Information Security","ITR ITR-Information Security","yes"]
["ITR ITR-Instructional Resources","ITR ITR-Instructional Resources","yes"]
["ITR ITR-Library","ITR ITR-Library","yes"]
["ITR ITR-UCF IT","ITR ITR-UCF IT","yes"]
["PKG Parking Services","PKG Parking Services","yes"]
["POL Police Department","POL Police Department","yes"]
["POL Security"]
["POL Emergency Management"]
["Procurement"]
["PRS Athletics Compliance"]
["PRS Audit"]
["PRS Business Services","PRS Business Services","yes"]
["PRS Diversity Initiatives"]
["PRS Government Relations"]
["PRS Office of Institutional Equity"]
["PRS Office of the President"]
["PRS Ombuds"]
["PRS Partnerships"]
["PRS Risk Office"]
["PRS University Compliance"]
["PRS Vice President's Office","PRS Vice President's Office","yes"]
["PRV Academic Program Quality",null,"no"]
["PRV Faculty Excellence","PRV Faculty Excellence","yes"]
["PRV Institutional Knowledge Management","PRV Institutional Knowledge Management","yes"]
["PRV Provost and Vice President","PRV Provost and Vice President","yes"]
["RSH AMPAC","RSH AMPAC","yes"]
["RSH Bimolecular Science Center","RSH Bimolecular Science Center","yes"]
["RSH Commercialization","RSH Commercialization","yes"]
["RSH Florida Solar Energy Center","RSH Florida Solar Energy Center","yes"]
["RSH Institute for Simulation and Training (IST)","RSH Institute for Simulation and Training (IST)","yes"]
["RSH Nanoscience Technology Center (NSTC)","RSH Nanoscience Technology Center (NSTC)","yes"]
["RSH Vice President's Office","RSH Vice President's Office","yes"]
["SDS Academic Services for Student Athletes","SDS Academic Services for Student Athletes","yes"]
["SDS Activity and Service Fee Business Office","SDS Activity and Service Fee Business Office","yes"]
["SDS Associate VP Administration & Student Life","SDS Associate VP Administration & Student Life","yes"]
["SDS Associate VP and Dean of Students","SDS Associate VP and Dean of Students","yes"]
["SDS Associate VP Enrollment Services","SDS Associate VP Enrollment Services","yes"]
["SDS Associate VP Student Engagement & Leadership Development","SDS Associate VP Student Engagement & Leadership Development","yes"]
["SDS Associate VP Student Success","SDS Associate VP Student Success","yes"]
["SDS Career Services","SDS Career Services","yes"]
["SDS Counseling and Psychological Services","SDS Counseling and Psychological Services","yes"]
["SDS Creative School for Children","SDS Creative School for Children","yes"]
["SDS Downtown Campus",null,"no"]
["SDS First Year Advising and Exploration","SDS First Year Advising and Exploration","yes"]
["SDS First Year Experience","SDS First Year Experience","yes"]
["SDS Florida Consortium for Metropolitan Research Universities","SDS Florida Consortium for Metropolitan Research Universities","yes"]
["SDS Fraternity and Sorority Life","SDS Fraternity and Sorority Life","yes"]
[null,"SDES - Student Health Services"]
["SDS Housing and Residence Life","SDS Housing and Residence Life",{"$f":"IF(B260=A260,\"yes\",\"no\")","v":"yes"}]
[null,"SDS Information Technology","no"]
["SDS LEAD Scholars Academy","SDS LEAD Scholars Academy","yes"]
["SDS Multicultural Academic and Support Services","SDS Multicultural Academic and Support Services","yes"]
["SDS Office of Student Involvement","SDS Office of Student Involvement","yes"]
["SDS Office of Student Rights and Responsibilities","SDS Office of Student Rights and Responsibilities","yes"]
["SDS Office of Student Success","SDS Office of Student Success","yes"]
[null,"SDES - Student Outreach Services"]
["SDS Recreation and Wellness Center","SDS Recreation and Wellness Center","yes"]
["SDS Registrar's Office","SDS Registrar's Office","yes"]
["SDS Social Justice and Advocacy","SDS Social Justice and Advocacy","yes"]
["SDS Student Academic Resource Center","SDS Student Academic Resource Center","yes"]
["SDS Student Accessibility Services","SDS Student Accessibility Services","yes"]
["SDS Student Financial Assistance","SDS Student Financial Assistance","yes"]
["SDS Student Legal Services","SDS Student Legal Services","yes"]
["SDS Student Union","SDS Student Union","yes"]
["SDS Transfer and Transition Services","SDS Transfer and Transition Services","yes"]
["SDS Trio Programs","SDS Trio Programs","yes"]
["SDS Undergraduate Admissions","SDS Undergraduate Admissions","yes"]
["SDS Vice President's Office","SDS Vice President's Office","yes"]
["SDS Wellness and Health Promotion Services","SDS Wellness and Health Promotion Services","yes"]
["SEM Security and Emergency Management","SEM Security and Emergency Management","yes"]
["TLC Academic Advancement Program","TLC Academic Advancement Program","yes"]
["TLC Academic Services","TLC Academic Services","yes"]
["TLC Division of Teaching & Learning and College of Undergraduate Studies","TLC Division of Teaching & Learning and College of Undergraduate Studies","yes"]
["TLC Experiential Learning","TLC Experiential Learning","yes"]
["TLC Faculty Center","TLC Faculty Center","yes"]
["TLC iACE","TLC iACE","yes"]
["TLC Interdisciplinary Studies","TLC Interdisciplinary Studies","yes"]
["TLC Operational Excellence Assessment","TLC Operational Excellence Assessment "]
["TLC Pre-Health/Pre-Law Advising","TLC Pre-Health/Pre-Law Advising","yes"]
["TLC Quality Enhancement Program","TLC Quality Enhancement  Program"]
["TLC UCF Abroad","TLC UCF Abroad","yes"]
["TLC Undergraduate Research","TLC Undergraduate Research","yes"]
["UAT & Demo"]